fUST/lending_fUST_20250705
["ID","MTS","AMOUNT","RATE_DAILY","PERIOD"]
[369645774,1751671838854,-460.0,0.00021597,2]
[369645775,1751671838863,-2000.0,0.000216,2]
[369645776,1751671838872,-326.80947965,0.00021797,6]
[369645777,1751671838882,-460.0,0.00021871,2]
[369645778,1751671838892,-178.75042859,0.00021918,2]
[369645779,1751671838902,-181.3561522,0.00021918,2]
[369645780,1751671838911,-6317.61,0.0002199,10]
[369645781,1751671838920,-5264.67,0.0002199,10]
[369645782,1751671838930,-4387.23,0.0002199,10]
[369645783,1751671838939,-3656.02,0.0002199,10]
[369645784,1751671838948,-280.04555083,0.00021997,2]
[369645785,1751671838958,-500.0,0.00021999,2]
[369645786,1751671838967,-495.2830194,0.00021999,2]
[369645787,1751671838977,-500.0,0.00021999,2]
[369645788,1751671838988,-554.52214105,0.00021999,2]
[369645789,1751671838998,-500.0,0.00021999,2]
[369645790,1751671839007,-255.00000005,0.00021999,2]
[369645791,1751671839016,-1311.67225252,0.00022,2]
[369645792,1751671839026,-1174.70658712,0.00022,2]
[369645793,1751671839036,-352.08482078,0.00022,2]
[369645794,1751671839045,-14115.72564352,0.00022,2]
[369645795,1751671839055,-48380.61458894,0.00022,14]
[369645796,1751671839064,-166.33337476,0.00022,10]
[369645797,1751671839073,-549.53531748,0.00022,2]
[369645798,1751671839083,-326.80947965,0.00022003,6]
[369645799,1751671839091,-198.386621,0.0002204,4]
[369645800,1751671839101,-591.11369279,0.00022145,2]
[369645801,1751671839111,-326.80947965,0.0002221,6]
[369645802,1751671839121,-837.48520791,0.00022272,2]
[369645803,1751671839130,-215.11345689,0.00022273,2]
[369645804,1751671839140,-230.40116161,0.00022273,2]
[369645805,1751671839150,-219.465,0.00022282,2]
[369645806,1751671839159,-6237.82896104,0.00022289,2]
[369645807,1751671839172,-1236.5707998,0.00022289,2]
[369645808,1751671839181,-42.4512002,0.00022298,2]
[369645837,1751671840678,-488.52350499,0.00022298,2]
[369645839,1751671840688,-460.0,0.00022298,2]
[369645841,1751671840697,-300.0,0.00022337,2]
[369645843,1751671840706,-524.86301716,0.00022372,2]
[369645845,1751671840716,-160.0,0.00022372,2]
[369645847,1751671840726,-460.0,0.00022379,2]
[369645849,1751671840735,-460.0,0.00022379,2]
[369645851,1751671840744,-159.09786468,0.0002239,2]
[369645853,1751671840754,-10999.999999,0.0002239,2]
[369645855,1751671840762,-524.86301716,0.0002239,10]
[369645857,1751671840772,-460.0,0.00022396,2]
[369645859,1751671840781,-460.0,0.00022396,2]
[369645860,1751671840791,-460.0,0.00022396,2]
[369645862,1751671840800,-460.0,0.00022396,2]
[369645864,1751671840809,-460.0,0.00022396,2]
[369645866,1751671840819,-460.0,0.00022396,2]
[369645868,1751671840828,-521.06,0.00022396,2]
[369645870,1751671840837,-536.02523661,0.00022399,2]
[369645872,1751671840846,-555.81813306,0.00022399,2]
[369645874,1751671840856,-460.0,0.00022399,2]
[369645876,1751671840866,-460.0,0.00022399,2]
[369645878,1751671840875,-460.0,0.00022399,2]
[369645880,1751671840885,-151.0,0.00022399,2]
[369645882,1751671840894,-152.14,0.000224,31]
[369645884,1751671840904,-152.14,0.000224,31]
[369645886,1751671840913,-152.14,0.000224,31]
[369645888,1751671840923,-152.14,0.000224,31]
[369645890,1751671840933,-152.14,0.000224,31]
[369645892,1751671840942,-152.14,0.000224,31]
[369645894,1751671840953,-152.14,0.000224,31]
[369645896,1751671840963,-152.14,0.000224,31]
[369645898,1751671840973,-152.14,0.000224,31]
[369645900,1751671840984,-326.80947965,0.00022417,7]
[369645902,1751671840993,-298.26877156,0.00022426,2]
[369645904,1751671841004,-215.0738,0.0002245,2]
[369645906,1751671841013,-316.10887213,0.00022466,3]
[369645908,1751671841022,-500.0,0.00022473,2]
[369645910,1751671841032,-200.0,0.00022473,2]
[369645912,1751671841041,-150.0,0.00022473,2]
[369645914,1751671841050,-334.64,0.0002248,3]
[369645916,1751671841060,-162.65338002,0.00022489,2]
[369645918,1751671841069,-500.0,0.00022489,2]
[369645920,1751671841078,-525.49961015,0.00022489,2]
[369645922,1751671841087,-500.0,0.00022489,2]
[369645924,1751671841099,-205.61168846,0.00022489,2]
[369645926,1751671841108,-500.0,0.00022489,2]
[369645928,1751671841117,-636.80843635,0.00022489,2]
[369645930,1751671841127,-500.0,0.00022489,2]
[369645932,1751671841136,-500.0,0.00022489,2]
[369645934,1751671841145,-500.0,0.00022489,2]
[369645936,1751671841154,-364.54131673,0.00022489,2]
[369645938,1751671841166,-135.45868327,0.00022489,2]
[369645940,1751671841176,-516.29536716,0.0002249,2]
[369645942,1751671841187,-2209.36726407,0.0002249,2]
[369645944,1751671841198,-952.602522,0.0002249,2]
[369645947,1751671841209,-707.14433712,0.0002249,2]
[369645948,1751671841218,-7472.71698116,0.0002249,2]
[369646178,1751671843581,-5621.14065639,0.0002249,2]
[369646400,1751671846465,-406.0,0.0002249,2]
[369646401,1751671846487,-796.64125129,0.0002249,2]
[369646402,1751671846510,-784.25,0.0002249,2]
[369647238,1751671890750,167.792886,0.00013699,2]
[369647246,1751672899295,159.403241,0.00013699,2]
[369647284,1751673031904,-857.65529113,0.000189,2]
[369647285,1751673031915,-150.0,0.000192,2]
[369647287,1751673031925,-185.1799,0.0002017,2]
[369647289,1751673031934,-159.403241,0.00020187,2]
[369647291,1751673031944,-238.0,0.00020274,3]
[369647293,1751673031953,-847.91215827,0.00020383,2]
[369647295,1751673031963,-406.0,0.00020583,2]
[369647297,1751673031972,-278.45574636,0.000209,4]
[369647299,1751673031981,-300.0,0.00020999,2]
[369647301,1751673031991,-300.0,0.00020999,2]
[369647303,1751673032000,-300.0,0.00020999,2]
[369647305,1751673032011,-300.0,0.00020999,2]
[369647307,1751673032021,-1200.0,0.00020999,2]
[369647309,1751673032030,-15000.0,0.00021,2]
[369647311,1751673032039,-278.45574628,0.00021038,4]
[369647313,1751673032049,-278.45574628,0.00021176,4]
[369647315,1751673032058,-278.45574628,0.00021314,5]
[369647317,1751673032067,-278.45574628,0.00021452,5]
[369647318,1751673032077,-690.642,0.00021575,2]
[369647319,1751673032085,-772.66593046,0.00021575,2]
[369647320,1751673032095,-207.4,0.00021575,2]
[369647321,1751673032104,-524.86301716,0.00021584,2]
[369647322,1751673032113,-160.0,0.00021584,2]
[369647323,1751673032123,-837.48520791,0.00021584,2]
[369647324,1751673032132,-278.45574628,0.0002159,5]
[369647325,1751673032141,-460.0,0.00021597,2]
[369647326,1751673032150,-460.0,0.00021597,2]
[369647327,1751673032160,-460.0,0.00021597,2]
[369647328,1751673032169,-319.08524854,0.00021597,2]
[369647329,1751673032178,-478.51721805,0.00021597,2]
[369647330,1751673032187,-460.0,0.00021597,2]
[369647331,1751673032196,-460.0,0.00021597,2]
[369647332,1751673032205,-460.0,0.00021597,2]
[369647333,1751673032214,-2000.0,0.000216,2]
[369647334,1751673032224,-278.45574628,0.00021728,5]
[369647335,1751673032233,-160.02602908,0.0002179,2]
[369647336,1751673032242,-812.26725688,0.000218,2]
[369647337,1751673032251,-215.11345689,0.00021856,2]
[369647338,1751673032261,-230.40116161,0.00021856,2]
[369647339,1751673032270,-278.45574628,0.00021866,6]
[369647340,1751673032280,-460.0,0.00021871,2]
[369647341,1751673032289,-605.38,0.00021871,2]
[369647342,1751673032298,-219.465,0.00021887,2]
[369647343,1751673032307,-6382.38,0.0002189,10]
[369647344,1751673032317,-5318.65,0.0002189,10]
[369647345,1751673032326,-4432.21,0.0002189,10]
[369647346,1751673032336,-3693.51,0.0002189,10]
[369647347,1751673032345,-500.0,0.00021899,2]
[369647348,1751673032355,-500.0,0.00021899,2]
[369647349,1751673032364,-500.0,0.00021899,2]
[369647350,1751673032373,-500.0,0.00021899,2]
[369647351,1751673032382,-500.0,0.00021899,2]
[369647352,1751673032392,-500.0,0.00021899,2]
[369647353,1751673032401,-500.0,0.00021899,2]
[369647355,1751673032411,-500.0,0.00021899,2]
[369647357,1751673032419,-500.0,0.00021899,2]
[369647359,1751673032429,-500.0,0.00021899,2]
[369647361,1751673032438,-500.0,0.00021899,2]
[369647363,1751673032447,-500.0,0.00021899,2]
[369647365,1751673032458,-500.0,0.00021899,2]
[369647367,1751673032467,-420.45217411,0.00021899,2]
[369647370,1751673032485,-79.54782589,0.00021899,2]
[369647372,1751673032495,-500.0,0.00021899,2]
[369647374,1751673032505,-500.0,0.00021899,2]
[369647376,1751673032514,-491.62934248,0.00021899,2]
[369647378,1751673032524,-384.86603216,0.00021899,2]
[369647380,1751673032533,-500.0,0.00021899,2]
[369647382,1751673032542,-500.0,0.00021899,2]
[369647384,1751673032552,-500.0,0.00021899,2]
[369647386,1751673032561,-500.0,0.00021899,2]
[369647388,1751673032570,-500.0,0.00021899,2]
[369647390,1751673032580,-500.0,0.00021899,2]
[369647392,1751673032589,-500.0,0.00021899,2]
[369647394,1751673032598,-500.0,0.00021899,2]
[369647396,1751673032608,-500.0,0.00021899,2]
[369647398,1751673032620,-500.0,0.00021899,2]
[369647400,1751673032629,-500.0,0.00021899,2]
[369647402,1751673032639,-500.0,0.00021899,2]
[369647404,1751673032648,-500.0,0.00021899,2]
[369647406,1751673032658,-500.0,0.00021899,2]
[369647408,1751673032668,-570.50000049,0.00021899,2]
[369647410,1751673032678,-500.0,0.00021899,2]
[369647412,1751673032687,-500.0,0.00021899,2]
[369647414,1751673032697,-500.0,0.00021899,2]
[369647416,1751673032706,-500.0,0.00021899,2]
[369647418,1751673032716,-500.0,0.00021899,2]
[369647420,1751673032725,-500.0,0.00021899,2]
[369647422,1751673032735,-500.0,0.00021899,2]
[369647424,1751673032745,-500.0,0.00021899,2]
[369647426,1751673032754,-500.0,0.00021899,2]
[369647428,1751673032763,-500.0,0.00021899,2]
[369647430,1751673032773,-500.0,0.00021899,2]
[369647432,1751673032784,-500.0,0.00021899,2]
[369647434,1751673032794,-500.0,0.00021899,2]
[369647436,1751673032803,-500.0,0.00021899,2]
[369647438,1751673032813,-500.0,0.00021899,2]
[369647440,1751673032823,-500.0,0.00021899,2]
[369647442,1751673032833,-504.43530581,0.00021899,2]
[369647444,1751673032844,-500.0,0.00021899,2]
[369647446,1751673032855,-500.0,0.00021899,2]
[369647448,1751673032865,-500.0,0.00021899,2]
[369647450,1751673032875,-500.0,0.00021899,2]
[369647452,1751673032884,-500.0,0.00021899,2]
[369647455,1751673032894,-500.0,0.00021899,2]
[369647457,1751673032903,-2192.70474517,0.000219,2]
[369647458,1751673032912,-9204.53163572,0.000219,2]
[369647461,1751673032922,-61351.54003566,0.000219,2]
[369647463,1751673032934,-1935.33,0.000219,2]
[369647465,1751673032945,-1260.0,0.000219,2]
[369647467,1751673032957,-421.16874268,0.000219,2]
[369647470,1751673032968,-384.11676842,0.000219,2]
[369647472,1751673032979,-1960.05600806,0.000219,2]
[369647474,1751673032990,-3659.19530598,0.000219,2]
[369647666,1751673037922,-2036.19556999,0.000219,2]
[369647674,1751673037992,-46858.14064829,0.000219,2]
[369647676,1751673038002,-812.26725687,0.00021948,2]
[369647678,1751673038012,-168.0,0.00021985,2]
[369647680,1751673038021,-10127.0,0.00022,2]
[369647682,1751673038031,-278.45574628,0.00022003,6]
[369647684,1751673038040,-300.0,0.00022017,2]
[369647686,1751673038050,-231.451058,0.0002204,4]
[369647688,1751673038060,-812.26725687,0.00022095,2]
[369647690,1751673038069,-151.0,0.00022096,6]
[369647692,1751673038079,-168.0,0.00022105,2]
[369647694,1751673038088,-278.45574628,0.00022141,6]
[369647696,1751673038098,-460.0,0.00022145,2]
[369647698,1751673038107,-298.28966662,0.00022173,2]
[369647700,1751673038117,-160.02602904,0.00022206,2]
[369647703,1751673038126,-812.26725687,0.00022243,2]
[369647706,1751673038136,-168.0,0.00022246,2]
[369647708,1751673038145,-278.45574628,0.00022279,6]
[369647709,1751673038155,-812.26725687,0.0002239,2]
[369647711,1751673038165,-460.0,0.00022396,2]
[369647714,1751673038175,-152.17,0.000224,31]
[369647715,1751673038184,-152.17,0.000224,31]
[369647718,1751673038193,-152.17,0.000224,31]
[369647720,1751673038203,-152.17,0.000224,31]
[369647722,1751673038212,-152.17,0.000224,31]
[369647724,1751673038221,-152.17,0.000224,31]
[369647726,1751673038231,-151.0,0.000224,8]
[369647728,1751673038240,-151.0,0.000224,7]
[369647729,1751673038249,-169.33740931,0.000224,2]
[369647731,1751673038259,-278.45574628,0.00022417,7]
[369647734,1751673038269,-460.0,0.00022419,2]
[369647736,1751673038278,-151.33309388,0.00022426,2]
[369647738,1751673038287,-500.0,0.00022426,2]
[369647739,1751673038297,-151.10986848,0.00022426,2]
[369647742,1751673038307,-168.0,0.00022436,2]
[369647744,1751673038317,-558.07738789,0.00022453,2]
[369647746,1751673038326,-460.0,0.00022489,2]
[369647747,1751673038336,-460.0,0.00022489,2]
[369647749,1751673038346,-460.0,0.00022489,2]
[369647751,1751673038355,-460.0,0.00022489,2]
[369647753,1751673038365,-460.0,0.00022489,2]
[369647755,1751673038374,-460.0,0.00022489,2]
[369647757,1751673038384,-460.0,0.00022489,2]
[369647758,1751673038393,-460.0,0.00022489,2]
[369647759,1751673038402,-460.0,0.00022489,2]
[369647760,1751673038412,-460.0,0.00022489,2]
[369647762,1751673038422,-460.0,0.00022489,2]
[369647764,1751673038431,-591.11369279,0.00022489,2]
[369647765,1751673038441,-460.0,0.00022489,2]
[369647766,1751673038451,-460.0,0.00022489,2]
[369647767,1751673038461,-460.0,0.00022489,2]
[369647768,1751673038471,-460.0,0.00022489,2]
[369647769,1751673038480,-330.52143682,0.00022489,2]
[369647770,1751673038490,-460.0,0.00022489,2]
[369647771,1751673038499,-581.47,0.00022489,2]
[369647772,1751673038509,-155538.88097469,0.0002249,7]
[369647773,1751673038518,-57181.93567402,0.0002249,7]
[369647787,1751673040312,-2791.22158817,0.0002249,7]
[369647952,1751673042928,-1201.61999995,0.0002248,10]
[369647954,1751673042942,-1609.42739068,0.0002248,10]
[369647956,1751673042954,-266.87260937,0.0002248,10]
[369647958,1751673042964,-997.88706989,0.0002249,7]
[369647961,1751673042975,-28442.54039147,0.0002249,7]
[369647964,1751673042996,-1882.11901457,0.0002249,7]
[369648188,1751673045962,-4365.23993023,0.0002249,7]
[369648189,1751673045975,-8286.02101576,0.0002249,7]
[369648190,1751673045986,-39374.91098216,0.0002249,7]
[369648475,1751673632302,200.0,0.00024143,120]
[369648476,1751673691070,200.0,0.00025003,120]
[369648477,1751673751885,200.0,0.00024716,120]
[369648479,1751673811894,200.0,0.00025782,120]
[369648481,1751673871314,200.0,0.00023699,120]
[369648482,1751673924805,159.403241,0.00013699,2]
[369648484,1751673932586,200.0,0.00024428,120]
[369648486,1751673991804,200.0,0.00023347,120]
[369648487,1751674051096,200.0,0.00024049,120]
[369648488,1751674111430,200.0,0.0002502,120]
[369648490,1751674171274,200.0,0.00024742,120]
[369648526,1751674232309,-150.0,0.000193,2]
[369648528,1751674232319,-651.2112509,0.00020557,2]
[369648529,1751674232329,-847.91215827,0.00020575,2]
[369648530,1751674232338,-406.0,0.00020583,2]
[369648531,1751674232348,-159.403241,0.00020951,2]
[369648532,1751674232357,-207.4,0.00021586,2]
[369648533,1751674232367,-86.31095718,0.00021586,2]
[369648534,1751674232383,-604.33104282,0.00021586,2]
[369648535,1751674232393,-300.0,0.00021598,2]
[369648536,1751674232402,-1200.0,0.00021598,2]
[369648537,1751674232412,-2848.04120742,0.00021599,2]
[369648538,1751674232423,-1251.40894554,0.00021599,2]
[369648542,1751674232501,-2892.41321272,0.00021599,2]
[369648554,1751674238051,-3460.02162799,0.00021599,2]
[369648555,1751674238061,-460.0,0.00021599,2]
[369648556,1751674238071,-460.0,0.00021599,2]
[369648557,1751674238080,-460.0,0.00021599,2]
[369648558,1751674238090,-460.0,0.00021599,2]
[369648559,1751674238100,-460.0,0.00021599,2]
[369648560,1751674238109,-460.0,0.00021599,2]
[369648561,1751674238118,-460.0,0.00021599,2]
[369648562,1751674238128,-460.0,0.00021599,2]
[369648563,1751674238138,-460.0,0.00021599,2]
[369648564,1751674238147,-460.0,0.00021599,2]
[369648565,1751674238157,-460.0,0.00021599,2]
[369648567,1751674238166,-460.0,0.00021599,2]
[369648568,1751674238176,-460.0,0.00021599,2]
[369648569,1751674238185,-264.55548595,0.00021599,2]
[369648570,1751674238194,-460.0,0.00021599,2]
[369648571,1751674238203,-460.0,0.00021599,2]
[369648572,1751674238213,-460.0,0.00021599,2]
[369648573,1751674238223,-460.0,0.00021599,2]
[369648574,1751674238232,-581.47,0.00021599,2]
[369648575,1751674238242,-460.0,0.00021599,2]
[369648577,1751674238251,-330.52143682,0.00021599,2]
[369648578,1751674238261,-2000.0,0.000216,2]
[369648579,1751674238271,-1134.73,0.00021645,2]
[369648580,1751674238280,-1134.73,0.00021745,2]
[369648581,1751674238290,-837.48520791,0.00021785,2]
[369648582,1751674238299,-215.11345689,0.00021785,2]
[369648583,1751674238309,-230.40116161,0.00021786,2]
[369648584,1751674238319,-175.572,0.00021798,2]
[369648585,1751674238328,-61989.92995903,0.000218,2]
[369648586,1751674238338,-1134.73,0.00021845,2]
[369648587,1751674238347,-500.0,0.00021873,2]
[369648588,1751674238356,-503.86328492,0.00021873,2]
[369648589,1751674238365,-460.0,0.00021873,2]
[369648590,1751674238375,-460.0,0.00021873,2]
[369648591,1751674238384,-157.79,0.00021873,2]
[369648592,1751674238394,-472.17,0.00021873,2]
[369648593,1751674238403,-460.0,0.00021873,2]
[369648594,1751674238412,-460.0,0.00021873,2]
[369648595,1751674238422,-546.55727129,0.00021873,2]
[369648596,1751674238431,-460.0,0.00021873,2]
[369648597,1751674238440,-460.0,0.00021873,2]
[369648598,1751674238449,-460.0,0.00021873,2]
[369648599,1751674238458,-1964.32,0.00021885,10]
[369648600,1751674238468,-318.7964016,0.00021895,2]
[369648601,1751674238477,-306.0,0.00021895,2]
[369648602,1751674238486,-575.7832369,0.00021895,2]
[369648603,1751674238496,-575.7832369,0.00021895,2]
[369648604,1751674238505,-575.7832369,0.00021895,2]
[369648605,1751674238516,-575.338851,0.00021895,2]
[369648606,1751674238525,-248.40837062,0.000219,6]
[369648607,1751674238535,-267.0,0.00021918,3]
[369648608,1751674238544,-1134.73,0.00021945,5]
[369648609,1751674238555,-248.40837055,0.00022003,6]
[369648610,1751674238564,-231.451058,0.0002204,4]
[369648611,1751674238574,-1134.73,0.00022045,4]
[369648612,1751674238583,-300.0,0.00022092,2]
[369648613,1751674238592,-151.0,0.00022103,6]
[369648614,1751674238602,-248.40837055,0.00022107,6]
[369648615,1751674238611,-1134.73,0.00022145,3]
[369648616,1751674238620,-298.28966662,0.00022147,2]
[369648617,1751674238630,-460.0,0.00022147,2]
[369648618,1751674238639,-460.0,0.00022147,2]
[369648619,1751674238649,-460.0,0.00022147,2]
[369648620,1751674238659,-460.0,0.00022147,2]
[369648621,1751674238669,-540.91,0.00022147,2]
[369648622,1751674238681,-248.40837055,0.0002221,6]
[369648623,1751674238702,-1134.73,0.00022245,2]
[369648624,1751674238711,-168.0,0.00022255,2]
[369648625,1751674238721,-487.36035413,0.00022289,2]
[369648626,1751674238730,-248.40837055,0.00022314,7]
[369648627,1751674238741,-487.36035412,0.00022317,2]
[369648628,1751674238751,-487.36035412,0.00022345,2]
[369648629,1751674238761,-1134.73,0.00022345,6]
[369648630,1751674238770,-487.36035412,0.00022372,2]
[369648631,1751674238780,-524.86301716,0.00022373,2]
[369648632,1751674238791,-160.0,0.00022373,2]
[369648633,1751674238802,-487.36035412,0.000224,2]
[369648634,1751674238812,-152.17,0.000224,31]
[369648635,1751674238821,-152.17,0.000224,31]
[369648636,1751674238831,-152.17,0.000224,31]
[369648637,1751674238840,-152.17,0.000224,31]
[369648638,1751674238849,-152.17,0.000224,31]
[369648639,1751674238859,-152.17,0.000224,31]
[369648640,1751674238869,-152.17,0.000224,31]
[369648641,1751674238879,-248.40837055,0.00022417,7]
[369648642,1751674238888,-460.0,0.00022421,2]
[369648643,1751674238898,-460.0,0.00022421,2]
[369648644,1751674238907,-1134.73,0.00022445,3]
[369648645,1751674238917,-200.0,0.0002248,5]
[369648646,1751674238927,-151.33309388,0.00022489,2]
[369648647,1751674238937,-500.0,0.00022489,2]
[369648648,1751674238948,-151.10986848,0.00022489,2]
[369648649,1751674238958,-460.0,0.00022489,2]
[369648650,1751674238968,-460.0,0.00022489,2]
[369648651,1751674238979,-460.0,0.00022489,2]
[369648652,1751674238988,-500.0,0.00022489,2]
[369648653,1751674238998,-460.0,0.00022489,2]
[369648654,1751674239008,-460.0,0.00022489,2]
[369648655,1751674239018,-460.0,0.00022489,2]
[369648656,1751674239029,-500.0,0.00022489,2]
[369648657,1751674239039,-597.20240822,0.00022489,2]
[369648658,1751674239048,-500.0,0.00022489,2]
[369648659,1751674239058,-500.0,0.00022489,2]
[369648660,1751674239068,-500.0,0.00022489,2]
[369648661,1751674239078,-500.0,0.00022489,2]
[369648662,1751674239088,-435.83581262,0.00022489,2]
[369648663,1751674239097,-174.751048,0.00022489,2]
[369648664,1751674239107,-500.0,0.00022489,2]
[369648665,1751674239117,-500.0,0.00022489,2]
[369648666,1751674239127,-500.0,0.00022489,2]
[369648667,1751674239137,-500.0,0.00022489,2]
[369648668,1751674239147,-500.0,0.00022489,2]
[369648669,1751674239156,-202.02712322,0.00022489,2]
[369648670,1751674239166,-500.0,0.00022489,2]
[369648671,1751674239176,-507.05000004,0.00022489,2]
[369648672,1751674239186,-500.0,0.00022489,2]
[369648673,1751674239196,-500.0,0.00022489,2]
[369648674,1751674239205,-500.0,0.00022489,2]
[369648675,1751674239215,-500.0,0.00022489,2]
[369648676,1751674239224,-500.0,0.00022489,2]
[369648677,1751674239234,-500.0,0.00022489,2]
[369648678,1751674239244,-500.0,0.00022489,2]
[369648679,1751674239253,-500.0,0.00022489,2]
[369648680,1751674239263,-500.0,0.00022489,2]
[369648681,1751674239274,-182.94597166,0.00022489,2]
[369648682,1751674239283,-500.0,0.00022489,2]
[369648683,1751674239294,-500.0,0.00022489,2]
[369648684,1751674239305,-467.54056485,0.00022489,2]
[369648685,1751674239314,-500.0,0.00022489,2]
[369648686,1751674239324,-500.0,0.00022489,2]
[369648687,1751674239334,-500.0,0.00022489,2]
[369648688,1751674239343,-500.0,0.00022489,2]
[369648689,1751674239354,-500.0,0.00022489,2]
[369648690,1751674239363,-500.0,0.00022489,2]
[369648691,1751674239374,-500.0,0.00022489,2]
[369648692,1751674239384,-500.0,0.00022489,2]
[369648693,1751674239395,-167.22050238,0.00022489,2]
[369648694,1751674239405,-1096.35237259,0.0002249,2]
[369648695,1751674239416,-4602.26581786,0.0002249,2]
[369648696,1751674239427,-93944.774872,0.0002249,7]
[369648699,1751674239527,-3894.41640471,0.0002249,7]
[369648700,1751674239539,-73584.11904305,0.0002249,7]
[369648701,1751674239552,-2500.8274349,0.0002249,7]
[369648870,1751674243419,-160.02602904,0.00021745,2]
[369648871,1751674243429,-5653.17838016,0.0002239,2]
[369648872,1751674243441,-692.13600239,0.0002239,2]
[369648886,1751674246163,-406.0,0.00021188,2]
[369648887,1751674246173,-116.8337513,0.00021497,2]
[369648888,1751674246186,-68.3461487,0.00021497,2]
[369648889,1751674246196,-339.59,0.00021599,2]
[369648890,1751674246206,-160.02602904,0.00022253,2]
[369648891,1751674246216,-2237.55,0.0002238,10]
[369648892,1751674246225,-10563.09748771,0.0002239,2]
[369648893,1751674246237,-833.13662808,0.0002239,2]
[369648894,1751674246249,-950.26397511,0.0002239,2]
[369648895,1751674246260,-2795.10654809,0.0002239,2]
[369648933,1751675350121,-15855.2171008,0.00016209,2]
[369648943,1751675432161,-2675.19788194,0.00016209,2]
[369648971,1751675438136,-1479.29119856,0.00016209,2]
[369648972,1751675438148,-24313.18546683,0.00016209,2]
[369648973,1751675438158,-847.91215827,0.00017869,2]
[369648974,1751675438168,-303.63471427,0.000179,2]
[369648975,1751675438177,-303.63471416,0.00018141,2]
[369648976,1751675438186,-303.63471416,0.00018383,2]
[369648977,1751675438195,-303.63471416,0.00018624,2]
[369648979,1751675438205,-303.63471416,0.00018866,2]
[369648980,1751675438215,-1215.01166244,0.000189,2]
[369648981,1751675438223,-303.63471416,0.00019107,2]
[369648982,1751675438236,-150.0,0.000193,2]
[369648984,1751675438246,-303.63471416,0.00019348,2]
[369648986,1751675438256,-303.63471416,0.0001959,2]
[369648987,1751675438269,-303.63471416,0.00019831,2]
[369648988,1751675438282,-197.13284725,0.0002,2]
[369648990,1751675438291,-303.63471416,0.00020072,2]
[369648991,1751675438301,-185.1799,0.00020187,2]
[369648994,1751675438310,-303.63471416,0.00020314,3]
[369648996,1751675438320,-303.63471416,0.00020555,3]
[369648997,1751675438329,-303.63471416,0.00020797,4]
[369648999,1751675438339,-303.63471416,0.00021038,4]
[369649002,1751675438349,-406.0,0.00021188,2]
[369649004,1751675438359,-303.63471416,0.00021279,5]
[369649006,1751675438368,-2051.5,0.00021511,2]
[369649007,1751675438378,-303.63471416,0.00021521,5]
[369649008,1751675438387,-207.4,0.00021577,2]
[369649009,1751675438396,-40879.03004,0.00021585,4]
[369649010,1751675438406,-524.86301716,0.00021585,2]
[369649012,1751675438416,-230.40116161,0.00021585,2]
[369649014,1751675438425,-12578.03337979,0.00021585,2]
[369649016,1751675438434,-160.0,0.00021585,2]
[369649018,1751675438445,-837.48520791,0.00021586,2]
[369649020,1751675438455,-215.11345689,0.00021586,2]
[369649022,1751675438464,-460.0,0.00021598,2]
[369649024,1751675438474,-460.0,0.00021598,2]
[369649026,1751675438483,-460.0,0.00021598,2]
[369649028,1751675438493,-540.91,0.00021598,2]
[369649030,1751675438503,-460.0,0.00021598,2]
[369649032,1751675438513,-478.41,0.00021598,2]